fUSD/lending_fUSD_20250423
["ID","MTS","AMOUNT","RATE_DAILY","PERIOD"]
[358722036,1745402348543,-497.00099997,0.00046733,120]
[358722037,1745402348592,-1026.62613523,0.00046733,30]
[358722038,1745402348639,-500.0,0.00046733,120]
[358722039,1745402348687,-500.0,0.00046733,120]
[358722040,1745402348734,-500.0,0.00046733,120]
[358722041,1745402348780,-500.0,0.00046733,120]
[358722042,1745402348829,-411.85341207,0.00046733,30]
[358722043,1745402348876,-569.7,0.00046733,30]
[358722044,1745402348923,-569.7,0.00046733,30]
[358722045,1745402348970,-569.7,0.00046733,30]
[358722046,1745402349016,-569.7,0.00046733,30]
[358722047,1745402349065,-569.7,0.00046733,30]
[358722048,1745402349111,-569.7,0.00046733,30]
[358722049,1745402349158,-569.7,0.00046733,30]
[358722050,1745402349206,-569.7,0.00046733,30]
[358722051,1745402349252,-569.7,0.00046733,30]
[358722052,1745402349297,-569.7,0.00046733,30]
[358722053,1745402349342,-569.7,0.00046733,30]
[358722054,1745402349390,-569.7,0.00046733,30]
[358722055,1745402349438,-569.7,0.00046733,30]
[358722056,1745402349489,-569.7,0.00046733,30]
[358722057,1745402349538,-500.0,0.00046733,30]
[358722058,1745402349587,-569.7,0.00046733,30]
[358722059,1745402349640,-569.7,0.00046733,30]
[358722060,1745402349689,-569.7,0.00046733,30]
[358722061,1745402349738,-569.7,0.00046733,30]
[358722062,1745402349787,-569.7,0.00046733,30]
[358722063,1745402349837,-569.7,0.00046733,30]
[358722064,1745402349886,-569.7,0.00046733,30]
[358722065,1745402349942,-500.0,0.00046733,30]
[358722066,1745402349989,-569.7,0.00046733,30]
[358722067,1745402350036,-569.7,0.00046733,30]
[358722068,1745402350084,-569.80270511,0.00046733,30]
[358722069,1745402350129,-328.57110639,0.00046733,30]
[358722070,1745402350174,-500.0,0.00046733,30]
[358722071,1745402350221,-500.0,0.00046733,30]
[358722072,1745402350266,-160.49,0.00046733,30]
[358722073,1745402350310,-389.28905039,0.00046733,30]
[358722074,1745402350356,-603.56805588,0.00046733,30]
[358722075,1745402350401,-300.0,0.00046733,30]
[358722076,1745402350453,-300.0,0.00046733,30]
[358722077,1745402350504,-300.0,0.00046733,30]
[358722078,1745402350554,-300.0,0.00046733,30]
[358722079,1745402350602,-300.0,0.00046733,30]
[358722080,1745402350647,-300.0,0.00046733,30]
[358722081,1745402350693,-287.2067898,0.00046733,30]
[358722082,1745402350738,-500.0,0.00046733,30]
[358722083,1745402350783,-500.0,0.00046733,30]
[358722084,1745402350841,-500.0,0.00046733,30]
[358722085,1745402350885,-500.0,0.00046733,30]
[358722086,1745402350926,-500.0,0.00046733,30]
[358722087,1745402350968,-500.0,0.00046733,30]
[358722088,1745402351010,-500.0,0.00046733,30]
[358722089,1745402351052,-500.0,0.00046733,30]
[358722090,1745402351093,-500.0,0.00046733,30]
[358722091,1745402351135,-500.0,0.00046733,30]
[358722092,1745402351177,-501.59235017,0.00046733,30]
[358722093,1745402351219,-1565.42,0.00046733,30]
[358722094,1745402351261,-1565.42,0.00046733,30]
[358722095,1745402351304,-1565.42,0.00046733,30]
[358722096,1745402351348,-1565.42,0.00046733,30]
[358722097,1745402351394,-1565.42,0.00046733,30]
[358722098,1745402351444,-1565.42,0.00046733,30]
[358722099,1745402351497,-1565.42,0.00046733,30]
[358722100,1745402351550,-1565.42,0.00046733,30]
[358722101,1745402351598,-1565.42,0.00046733,30]
[358722102,1745402351650,-1565.42,0.00046733,30]
[358722103,1745402351694,-1565.42,0.00046733,30]
[358722104,1745402351740,-1565.42,0.00046733,30]
[358722105,1745402351784,-1565.42,0.00046733,30]
[358722106,1745402351830,-1565.42,0.00046733,30]
[358722107,1745402351878,-1565.42,0.00046733,30]
[358722108,1745402351924,-1565.42,0.00046733,30]
[358722109,1745402352212,-1565.42,0.00046733,30]
[358722110,1745402352258,-1565.42,0.00046733,30]
[358722111,1745402352301,-1565.42,0.00046733,30]
[358722112,1745402352343,-1565.42,0.00046733,30]
[358722113,1745402352386,-1565.42,0.00046733,30]
[358722114,1745402352431,-1565.42,0.00046733,30]
[358722115,1745402352481,-1565.42,0.00046733,30]
[358722116,1745402352532,-1565.6015385,0.00046733,30]
[358722117,1745402352582,-524.84,0.00046733,120]
[358722118,1745402352635,-524.84,0.00046733,120]
[358722119,1745402352687,-524.84,0.00046733,120]
[358722120,1745402352739,-524.84,0.00046733,120]
[358722121,1745402352792,-524.84,0.00046733,120]
[358722122,1745402352844,-524.84,0.00046733,120]
[358722123,1745402352895,-524.84,0.00046733,120]
[358722124,1745402352949,-524.84,0.00046733,120]
[358722125,1745402353000,-524.84,0.00046733,120]
[358722126,1745402353052,-524.84,0.00046733,120]
[358722127,1745402353103,-524.84,0.00046733,120]
[358722128,1745402353155,-524.84,0.00046733,120]
[358722129,1745402353207,-524.84,0.00046733,120]
[358722130,1745402353259,-524.84,0.00046733,120]
[358722131,1745402353310,-524.84,0.00046733,120]
[358722132,1745402353363,-524.84,0.00046733,120]
[358722133,1745402353416,-524.84,0.00046733,120]
[358722134,1745402353471,-524.84,0.00046733,120]
[358722135,1745402353524,-524.84,0.00046733,120]
[358722136,1745402353578,-524.84,0.00046733,120]
[358722137,1745402353632,-524.84,0.00046733,120]
[358722138,1745402353682,-524.84,0.00046733,120]
[358722139,1745402353727,-524.84,0.00046733,120]
[358722140,1745402353770,-524.94463068,0.00046733,120]
[358722141,1745402355359,-150.0,0.00038,120]
[358722142,1745402355408,-150.0,0.00039,120]
[358722143,1745402355458,-150.0,0.0004,120]
[358722144,1745402355509,-150.0,0.00041,120]
[358722145,1745402355559,-150.0,0.00042,120]
[358722146,1745402355604,-150.0,0.00042113,30]
[358722147,1745402355648,-248.78673516,0.00042113,30]
[358722148,1745402355689,-150.0,0.00042113,30]
[358722149,1745402355731,-225.28204345,0.00042113,30]
[358722150,1745402355772,-542.15107507,0.00042113,30]
[358722151,1745402355816,-150.0,0.00043,120]
[358722152,1745402356778,508.39,0.00046733,30]
[358722153,1745402356839,508.39,0.00046733,30]
[358722154,1745402356900,508.39,0.00046733,30]
[358722155,1745402356954,508.39,0.00046733,30]
[358722156,1745402357010,508.39,0.00046733,30]
[358722157,1745402357072,508.39,0.00046733,30]
[358722158,1745402357130,508.39,0.00046733,30]
[358722159,1745402357186,508.39,0.00046733,30]
[358722160,1745402357235,508.39,0.00046733,30]
[358722161,1745402357285,508.39,0.00046733,30]
[358722162,1745402357340,508.39,0.00046733,30]
[358722163,1745402357405,508.39,0.00046733,30]
[358722164,1745402357462,508.39,0.00046733,30]
[358722165,1745402357516,508.39,0.00046733,30]
[358722166,1745402357567,508.39,0.00046733,30]
[358722167,1745402357621,508.39,0.00046733,30]
[358722168,1745402357674,508.39,0.00046733,30]
[358722169,1745402357721,508.39,0.00046733,30]
[358722170,1745402357773,508.39,0.00046733,30]
[358722171,1745402357838,508.39,0.00046733,30]
[358722172,1745402357894,508.39,0.00046733,30]
[358722173,1745402357957,508.39,0.00046733,30]
[358722174,1745402358014,508.39,0.00046733,30]
[358722175,1745402358082,508.48873545,0.00046733,30]
[358722176,1745402360375,1590.64,0.00046733,30]
[358722177,1745402360433,1590.64,0.00046733,30]
[358722178,1745402360490,1590.64,0.00046733,30]
[358722179,1745402360560,1590.64,0.00046733,30]
[358722180,1745402360850,1590.64,0.00046733,30]
[358722181,1745402360984,1590.64,0.00046733,30]
[358722182,1745402361054,1590.64,0.00046733,30]
[358722183,1745402361117,1590.64,0.00046733,30]
[358722184,1745402361238,1590.64,0.00046733,30]
[358722185,1745402361300,1590.64,0.00046733,30]
[358722186,1745402361360,1590.64,0.00046733,30]
[358722187,1745402361425,1590.64,0.00046733,30]
[358722188,1745402361480,1590.64,0.00046733,30]
[358722189,1745402361535,1590.64,0.00046733,30]
[358722190,1745402361596,1590.64,0.00046733,30]
[358722191,1745402361647,1590.64,0.00046733,30]
[358722192,1745402361698,1590.64,0.00046733,30]
[358722193,1745402361811,1590.64,0.00046733,30]
[358722194,1745402361875,1590.64,0.00046733,30]
[358722195,1745402361929,1590.64,0.00046733,30]
[358722196,1745402361983,1590.64,0.00046733,30]
[358722197,1745402362035,1590.64,0.00046733,30]
[358722198,1745402362089,1590.64,0.00046733,30]
[358722199,1745402362143,1590.66968306,0.00046733,30]
[358722200,1745402362240,500.0,0.00046733,30]
[358722201,1745402362305,500.0,0.00046733,30]
[358722202,1745402362364,500.0,0.00046733,30]
[358722203,1745402362418,500.0,0.00046733,30]
[358722204,1745402362486,500.0,0.00046733,30]
[358722205,1745402362541,500.0,0.00046733,30]
[358722206,1745402362593,500.0,0.00046733,30]
[358722207,1745402362645,500.0,0.00046733,30]
[358722208,1745402362694,500.0,0.00046733,30]
[358722209,1745402362742,500.0,0.00046733,30]
[358722210,1745402362800,500.0,0.00046733,30]
[358722211,1745402362855,500.0,0.00046733,30]
[358722212,1745402362907,500.0,0.00046733,30]
[358722213,1745402362966,500.0,0.00046733,30]
[358722214,1745402363018,593.05455985,0.00046733,30]
[358722215,1745402363309,1185.11679297,0.00046733,30]
[358722216,1745402403202,150.0,0.00042113,30]
[358722217,1745402407830,207.37976064,0.00042113,30]
[358722218,1745402409213,150.0,0.00042113,30]
[358722219,1745402413955,279.5573884,0.00042113,30]
[358722220,1745402419822,662.98979995,0.00042113,30]
[358722221,1745402420609,3635.0,0.00043,30]
[358722222,1745402463677,150.042318,0.0004383,120]
[358722223,1745402477640,150.042318,0.0004383,120]
[358722225,1745402492976,150.042318,0.0004383,120]
[358722226,1745402500184,150.0,0.00043836,30]
[358722227,1745402555446,-250.0,0.00021,2]
[358722228,1745402555470,-150.0,0.00022,2]
[358722229,1745402587058,172.86438159,0.00042113,30]
[358722231,1745402706412,1532.6,0.0004383,30]
[358722237,1745402860010,1800.0,0.00043836,30]
[358722249,1745402915628,500.0,0.00039796,31]
[358722250,1745402915706,500.0,0.00039796,31]
[358722251,1745402915777,500.0,0.00039796,31]
[358722252,1745402915852,500.0,0.00039796,31]
[358722253,1745402915928,437.34484624,0.00039796,31]
[358722268,1745403031894,-300.0,0.00023,2]
[358722269,1745403031904,-150.0,0.00023013,2]
[358722270,1745403031915,-150.0,0.00023025,2]
[358722271,1745403031924,-334.934,0.00025,2]
[358722272,1745403031936,-15.066,0.00025,2]
[358722273,1745403031947,-150.0,0.000253,2]
[358722274,1745403031956,-150.0,0.000253,2]
[358722275,1745403031967,-808.48793576,0.00026973,2]
[358722276,1745403031976,-400.0,0.00027,2]
[358722277,1745403031986,-828.08728966,0.0002856,2]
[358722278,1745403031995,-162.44331029,0.0002866,2]
[358722279,1745403032004,-1417.88293379,0.0002886,2]
[358722280,1745403032014,-5459.7641905,0.0002886,2]
[358722281,1745403032027,-2503.3458095,0.0002886,2]
[358722282,1745403032036,-999.99,0.0002886,2]
[358722283,1745403032048,-828.08728966,0.000289,2]
[358722284,1745403032057,-450.0,0.00029,2]
[358722285,1745403032067,-163.366,0.00030514,2]
[358722286,1745403032078,-856.00720764,0.000309,9]
[358722287,1745403032088,-500.0,0.00031,2]
[358722288,1745403032098,-1200.0,0.00031933,3]
[358722289,1745403032108,-400.0,0.00031933,3]
[358722290,1745403032117,-856.0072075,0.00031934,10]
[358722291,1745403032127,-856.0072075,0.00032969,11]
[358722292,1745403032137,-550.0,0.00033,2]
[358722293,1745403032147,-856.0072075,0.00034003,11]
[358722294,1745403032157,-244.0,0.00034349,3]
[358722295,1745403032166,-1680.0,0.00034491,3]
[358722296,1745403032176,-340.212787,0.00034862,2]
[358722297,1745403032185,-856.0072075,0.00035038,12]
[358722298,1745403032195,-500.0,0.00036,5]
[358722299,1745403032206,-856.0072075,0.00036072,13]
[358722300,1745403032216,-162.44331028,0.0003628,2]
[358722301,1745403032225,-856.0072075,0.00037107,13]
[358722302,1745403032235,-314.0,0.00037253,3]
[358722303,1745403032245,-973.56,0.00037947,2]
[358722304,1745403032254,-856.0072075,0.00038141,14]
[358722305,1745403032264,-506.30380538,0.00038807,5]
[358722306,1745403032273,-856.0072075,0.00039176,15]
[358722307,1745403032283,-23900.0,0.00039797,2]
[358722308,1745403032292,-221.45,0.00040189,2]
[358722309,1745403032302,-856.0072075,0.0004021,15]
[358722310,1745403032312,-973.56,0.00040211,2]
[358722311,1745403032321,-343.22,0.00040293,2]
[358722312,1745403032331,-856.0072075,0.00041245,16]
[358722313,1745403032341,-167.72,0.00041456,2]
[358722314,1745403032350,-856.0072075,0.00042279,17]
[358722315,1745403032359,-973.56,0.00042475,2]
[358722316,1745403032369,-754.5144976,0.00042603,2]
[358722317,1745403032379,-500.0,0.00043082,7]
[358722318,1745403032388,-856.0072075,0.00043314,17]
[358722319,1745403032398,-169.0254,0.00043336,2]
[358722320,1745403032408,-500.0,0.00043643,2]
[358722321,1745403032417,-181.21,0.0004372,2]
[358722322,1745403032427,-167.72,0.00043759,2]
[358722323,1745403032437,-256.67305654,0.00043836,2]
[358722324,1745403032447,-500.0,0.00043836,31]
[358722325,1745403032456,-500.0,0.00043836,31]
[358722326,1745403032466,-500.0,0.00043836,31]
[358722327,1745403032476,-500.0,0.00043836,31]
[358722328,1745403032485,-500.0,0.00043836,31]
[358722329,1745403032495,-500.0,0.00043836,31]
[358722330,1745403032504,-500.0,0.00043836,31]
[358722331,1745403032514,-500.0,0.00043836,31]
[358722332,1745403032523,-500.0,0.00043836,31]
[358722333,1745403032533,-500.0,0.00043836,31]
[358722334,1745403032543,-285.48548485,0.00043836,31]
[358722335,1745403032553,-500.0,0.00043836,31]
[358722336,1745403032562,-500.0,0.00043836,31]
[358722338,1745403032572,-500.0,0.00043836,31]
[358722339,1745403032582,-500.0,0.00043836,31]
[358722340,1745403032592,-500.0,0.00043836,31]
[358722341,1745403032602,-11134.28000712,0.00043861,2]
[358722343,1745403032611,-156.393,0.00043888,30]
[358722345,1745403032621,-162.44331028,0.000439,2]
[358722347,1745403032631,-6463.3058769,0.0004399,2]
[358722349,1745403032640,-9999.99,0.00044,2]
[358722351,1745403032650,-5911.99,0.00044,2]
[358722353,1745403032659,-1076.7,0.00044,2]
[358722355,1745403032668,-1000.0,0.0004419,2]
[358722357,1745403032678,-680.95,0.00044345,2]
[358722359,1745403032687,-856.0072075,0.00044348,18]
[358722361,1745403032697,-2007.27,0.00044405,2]
[358722363,1745403032706,-859.9984863,0.00044411,4]
[358722365,1745403032716,-159.75,0.00044472,2]
[358722367,1745403032726,-500.0,0.00044658,120]
[358722369,1745403032735,-500.0,0.00044658,120]
[358722371,1745403032745,-500.0,0.00044658,120]
[358722373,1745403032754,-607.52758236,0.00044658,120]
[358722375,1745403032763,-500.0,0.00044658,120]
[358722377,1745403032773,-500.0,0.00044658,120]
[358722379,1745403032782,-156.95,0.0004472,120]
[358722381,1745403032792,-973.56,0.00044739,2]
[358722383,1745403032801,-50000.0,0.00045,2]
[358722385,1745403032810,-3000.0,0.00045,2]
[358722387,1745403032819,-856.0072075,0.00045383,19]
[358722389,1745403032829,-1664.8153,0.000459,2]
[358722391,1745403032838,-675.83472568,0.000459,15]
[358722393,1745403032847,-675.83472568,0.00045991,15]
[358722395,1745403032856,-50000.0,0.00046,2]
[358722397,1745403032865,-1474.9382,0.00046,2]
[358722399,1745403032875,-1973.8843,0.00046,2]
[358722401,1745403032884,-1449.00184502,0.00046,120]
[358722403,1745403032893,-1698.0,0.00046007,120]
[358722405,1745403032902,-167.72,0.00046063,2]
[358722407,1745403032912,-675.83472568,0.00046082,15]
[358722409,1745403032921,-3744.0,0.000461,120]
[358722411,1745403032930,-675.83472568,0.00046173,15]
[358722413,1745403032940,-150.042318,0.00046248,120]
[358722415,1745403032951,-675.83472568,0.00046264,15]
[358722417,1745403032960,-150.042318,0.00046348,120]
[358722419,1745403032970,-675.83472568,0.00046354,15]
[358722421,1745403032980,-2500.0,0.0004638,2]
[358722422,1745403032989,-856.0072075,0.00046417,19]
[358722423,1745403032999,-675.83472568,0.00046445,15]
[358722424,1745403033008,-150.042318,0.00046448,120]
[358722425,1745403033018,-1333.0,0.00046466,120]
[358722427,1745403033030,-5530.0,0.000465,2]
[358722430,1745403033041,-200.0,0.00046512,2]
[358722432,1745403033050,-150.0,0.00046513,2]
[358722434,1745403033060,-2000.0,0.00046515,3]
[358722436,1745403033070,-150.0,0.00046522,2]
[358722438,1745403033082,-675.83472568,0.00046536,15]
[358722440,1745403033092,-157.042311,0.00046548,120]
[358722442,1745403033103,-878.5,0.00046558,60]
[358722444,1745403033113,-680.95,0.00046563,2]
[358722446,1745403033122,-150.0,0.00046575,120]
[358722448,1745403033132,-150.0,0.00046575,120]
[358722450,1745403033142,-150.0,0.00046575,120]
[358722452,1745403033152,-150.0,0.00046575,120]
[358722454,1745403033162,-150.0,0.00046575,120]
[358722456,1745403033171,-250.0,0.00046575,120]
[358722458,1745403033181,-150.0,0.00046575,120]
[358722460,1745403033191,-150.0,0.00046575,120]
[358722462,1745403033202,-150.0,0.00046575,120]
[358722464,1745403033213,-180.75436399,0.00046575,120]
[358722466,1745403033222,-500.0,0.00046575,120]
[358722468,1745403033232,-500.0,0.00046575,120]
[358722470,1745403033243,-500.0,0.00046575,120]
[358722472,1745403033252,-500.0,0.00046575,120]
[358722474,1745403033262,-181.99114877,0.00046575,120]
[358722477,1745403033275,-500.0,0.00046575,120]
[358722479,1745403033284,-500.0,0.00046575,120]
[358722481,1745403033294,-500.0,0.00046575,120]
[358722483,1745403033303,-500.0,0.00046575,120]
[358722485,1745403033312,-500.0,0.00046575,120]
[358722487,1745403033322,-500.0,0.00046575,120]
[358722489,1745403033331,-500.0,0.00046575,120]
[358722491,1745403033341,-500.0,0.00046575,120]
[358722493,1745403033350,-474.23047566,0.00046575,120]
[358722495,1745403033361,-153.69770675,0.00046575,120]
[358722497,1745403033371,-150.0,0.00046575,120]
[358722499,1745403033381,-150.0,0.00046575,120]
[358722501,1745403033391,-278.45960483,0.00046575,120]
[358722503,1745403033400,-150.0,0.00046575,2]
[358722504,1745403033410,-500.0,0.00046575,120]
[358722505,1745403033420,-500.0,0.00046575,120]
[358722506,1745403033429,-500.0,0.00046575,120]
[358722507,1745403033440,-500.0,0.00046575,120]
[358722508,1745403033450,-500.0,0.00046575,120]
[358722509,1745403033461,-500.0,0.00046575,120]
[358722510,1745403033472,-500.0,0.00046575,120]
[358722511,1745403033484,-500.0,0.00046575,120]
[358722512,1745403033494,-500.0,0.00046575,120]
[358722513,1745403033505,-500.0,0.00046575,120]
[358722514,1745403033515,-500.0,0.00046575,120]
[358722515,1745403033525,-500.0,0.00046575,120]
[358722516,1745403033535,-500.0,0.00046575,120]
[358722517,1745403033545,-500.0,0.00046575,120]
[358722518,1745403033556,-500.0,0.00046575,120]
[358722519,1745403033566,-500.0,0.00046575,120]
[358722520,1745403033576,-500.0,0.00046575,120]
[358722521,1745403033586,-500.0,0.00046575,120]
[358722522,1745403033596,-500.0,0.00046575,120]
[358722523,1745403033605,-495.32999651,0.00046575,120]
[358722524,1745403033615,-150.0,0.00046575,10]
[358722525,1745403033626,-26974.15656522,0.0004658,7]
[358722526,1745403033700,-1234.90612512,0.0004658,7]
[358722528,1745403033713,-247.27884556,0.0004658,7]
[358722529,1745403033723,-150.0,0.00046583,7]
[358722530,1745403033734,-143.50890421,0.00046589,15]
[358722580,1745403043096,-687.9987891,0.00044411,4]
[358722581,1745403043106,-2500.0,0.00046,2]
[358722582,1745403043117,-28.16320062,0.00046589,15]
[358722583,1745403043129,-1000.0,0.0004659,2]
[358722584,1745403043138,-12346.6756,0.0004659,2]
[358722585,1745403043148,-164.042318,0.00046598,120]
[358722586,1745403043158,-1490.51,0.000466,2]
[358722587,1745403043173,-1957.5506118,0.000466,18]
[358722588,1745403043183,-5000.0,0.00046618,120]
[358722589,1745403043194,-198.84955324,0.00046621,24]
[358722590,1745403043204,-225.0,0.00046626,2]
[358722591,1745403043215,-675.83472568,0.00046627,15]
[358722592,1745403043224,-150.0,0.00046647,7]
[358722593,1745403043234,-171.67210482,0.00046654,15]
[358722594,1745403043246,-400.0,0.0004667,3]
[358722595,1745403043256,-400.0,0.0004667,3]
[358722596,1745403043265,-760.895396,0.0004667,3]
[358722597,1745403043275,-26067.5000177,0.00046679,4]
[358722598,1745403043285,-521.0027685,0.00046687,2]
[358722599,1745403043295,-26067.5000177,0.00046688,4]
[358722601,1745403043306,-3500.0,0.0004669,10]
[358722603,1745403043316,-26067.5000177,0.0004669,4]
[358722605,1745403043327,-52135.0000354,0.00046691,4]
[358722607,1745403043337,-32229.6613181,0.00046691,4]
[358722609,1745403043347,-159.65,0.00046691,2]
[358722611,1745403043357,-16114.830659,0.00046692,4]
[358722613,1745403043368,-157.042318,0.00046698,120]
[358722615,1745403043378,-16114.830659,0.00046698,4]
[358722617,1745403043388,-5000.0,0.000467,9]
[358722619,1745403043398,-4100.0,0.000467,8]
[358722621,1745403043408,-16000.0,0.000467,14]
[358722624,1745403043418,-150.0,0.000467,105]
[358722625,1745403043428,-500.0,0.000467,120]
[358722627,1745403043438,-500.0,0.000467,120]
[358722628,1745403043448,-284.90203882,0.000467,120]
[358722629,1745403043459,-150.0,0.000467,120]
[358722630,1745403043469,-216.2364097,0.000467,120]
[358722633,1745403043480,-153.59981049,0.000467,120]
[358722635,1745403043490,-150.0,0.000467,120]
[358722638,1745403043499,-150.0,0.000467,120]
[358722640,1745403043509,-150.0,0.000467,120]
[358722643,1745403043519,-202.24647559,0.000467,120]
[358722645,1745403043528,-150.0,0.000467,120]
[358722648,1745403043538,-150.0,0.000467,120]
[358722650,1745403043548,-150.0,0.000467,120]
[358722654,1745403043559,-170.66404548,0.000467,120]
[358722658,1745403043568,-207.38778015,0.000467,120]
[358722660,1745403043579,-3500.0,0.000467,10]
[358722663,1745403043588,-1559.319205,0.000467,92]
[358722665,1745403043598,-762.0,0.000467,30]
[358722668,1745403043608,-382.2792,0.000467,30]
[358722671,1745403043619,-382.2792,0.000467,30]
[358722673,1745403043633,-333.406799,0.000467,30]
[358722674,1745403043643,-26067.5000177,0.000467,4]
[358722677,1745403043652,-67424.30578508,0.00046701,10]
[358722902,1745403045853,-2155.94123025,0.00046701,10]
[358722906,1745403045898,-1343.09600778,0.00046701,10]
[358722909,1745403045910,-6989.87401016,0.00046701,10]
[358722911,1745403045922,-678.7639978,0.00046701,10]
[358722913,1745403045934,-431.56938872,0.00046701,10]
[358722915,1745403045951,-4689.03019822,0.00046701,10]
[358723414,1745403051510,-253.88,0.00034972,2]
[358723417,1745403051521,-151.0,0.00034972,2]
[358723419,1745403051533,-151.0,0.0003675,2]
[358723421,1745403051544,-151.0,0.0003675,2]
[358723423,1745403051555,-151.0,0.0003675,2]
[358723425,1745403051567,-300.0,0.000464,16]
[358723428,1745403051578,-150.0,0.00046474,2]
[358723430,1745403051589,-150.0,0.00046475,2]
[358723432,1745403051600,-150.0,0.00046477,2]
[358723434,1745403051611,-150.0,0.00046481,2]
[358723436,1745403051623,-150.0,0.00046481,2]
[358723438,1745403051634,-150.0,0.00046484,2]
[358723440,1745403051644,-150.0,0.0004649,2]
[358723443,1745403051655,-150.0,0.00046491,2]
[358723445,1745403051666,-500.0,0.00046499,2]
[358723447,1745403051676,-600.0,0.000465,16]
[358723449,1745403051687,-150.0,0.00046502,2]
[358723451,1745403051698,-150.0,0.00046507,2]
[358723453,1745403051709,-150.0,0.00046508,2]
[358723455,1745403051722,-150.0,0.00046513,2]
[358723457,1745403051733,-150.0,0.00046517,2]
[358723459,1745403051744,-150.0,0.00046518,2]
[358723462,1745403051756,-150.0,0.00046522,2]
[358723464,1745403051768,-150.0,0.00046537,2]
[358723466,1745403051781,-150.0,0.00046546,2]
[358723468,1745403051792,-150.0,0.00046547,2]
[358723470,1745403051803,-150.0,0.00046559,2]
[358723472,1745403051815,-150.0,0.00046577,7]
[358723474,1745403051826,-150.0,0.00046583,7]
[358723476,1745403051837,-150.0,0.00046596,7]
[358723479,1745403051848,-150.0,0.00046599,7]
[358723481,1745403051860,-150.0,0.000466,7]
[358723483,1745403051871,-150.0,0.00046617,7]
[358723485,1745403051882,-150.0,0.00046618,7]
[358723487,1745403051893,-150.0,0.00046627,7]
[358723523,1745403052247,-150.0,0.00046638,7]
[358723527,1745403052276,-150.0,0.00046639,7]
[358723530,1745403052294,-150.0,0.00046649,7]
[358723532,1745403052305,-150.0,0.00046653,7]
[358723534,1745403052315,-150.0,0.00046662,7]
[358723536,1745403052324,-150.0,0.0004667,7]
[358723538,1745403052334,-150.0,0.00046676,7]
[358723540,1745403052343,-150.0,0.00046684,7]
[358723542,1745403052353,-307.7067129,0.00046699,2]
[358723544,1745403052363,-21595.5443371,0.00046701,10]
[358723548,1745403052384,-9408.87504489,0.00046701,10]
[358723550,1745403052393,-3500.0,0.00046701,10]
[358723552,1745403052403,-26067.5000177,0.00046703,4]
[358723554,1745403052414,-16114.830659,0.00046703,4]
[358723556,1745403052424,-16114.830659,0.00046706,4]
[358723558,1745403052434,-16556.32709735,0.00046708,4]
[358723560,1745403052445,-3165.60415683,0.00046708,4]
[358723565,1745403052482,-150.0,0.0004657,2]
[358723567,1745403052492,-150.0,0.00046622,7]
[358723569,1745403052502,-401.90126298,0.00046708,4]
[358724888,1745403066229,2827.09,0.00043836,30]
[358726591,1745403086477,1144.42,0.00043836,30]
[358726596,1745403098037,156.04,0.00042,30]